bitfinex-derivatives/quotes_SOLF0:USTF0_20260302
["timestamp","ask_amount","ask_price","bid_price","bid_amount"]
[1772419798661,3.91259951,84.109,84.043,1.61649282]
[1772419799065,3.91259951,84.109,84.03,7.3888029]
[1772419799066,3.91259951,84.109,84.051,1.61546204]
[1772419799265,3.91259951,84.109,84.052,1.61546204]
[1772419799865,3.91259951,84.097,84.037,1.61478609]
[1772419800067,3.91259951,84.097,84.041,1.61475151]
[1772419800362,3.91259951,84.119,84.043,1.61475151]
[1772419800568,3.91259951,84.119,84.061,1.61475151]
[1772419801866,3.91259951,84.134,84.071,1.5525583]
[1772419802070,3.91259951,84.134,84.08,8.94133254]
[1772419802271,3.91259951,84.134,84.081,1.55252964]
[1772419802466,3.91259951,84.134,84.082,1.55252964]
[1772419803475,237.52,84.18,84.067,10.7053]
[1772419803476,3.91259951,84.133,84.07,7.3888029]
[1772419803770,3.91259951,84.133,84.07,8.82932694]
[1772419803971,3.91259951,84.133,84.071,1.43985977]
[1772419804373,3.91259951,84.133,84.04,461.74987823]
[1772419804374,3.91259951,84.119,84.045,1.43985977]
[1772419805072,3.91259951,84.104,84.045,1.43985977]
[1772419805874,3.91259951,84.102,84.045,1.43985977]
[1772419807075,3.91259951,84.129,84.061,1.41174612]
[1772419808972,3.91259951,84.127,84.071,1.4105047]
[1772419810574,3.91259951,84.126,84.07,7.3888029]
[1772419810773,3.91259951,84.126,84.071,1.41190764]
[1772419810974,3.91259951,84.126,84.08,7.3888029]
[1772419811373,3.91259951,84.141,84.081,1.38583691]
[1772419811973,3.91259951,84.141,84.091,1.38966309]
[1772419812782,3.91259951,84.141,84.097,1.38917388]
[1772419813176,3.91259951,84.141,84.081,1.38342645]
[1772419814876,3.91259951,84.141,84.085,12.08528286]
[1772419815079,3.91259951,84.141,84.086,1.31677561]
[1772419815379,3.91259951,84.141,84.09,7.3888029]
[1772419815981,3.6448256,84.132,84.072,1.31621984]
[1772419816977,3.6448256,84.132,84.075,10.7044]
[1772419818275,3.66862263,84.12,84.07,7.3888029]
[1772419818489,3.66862263,84.12,84.057,1.31713483]
[1772419818490,3.66862263,84.119,84.057,1.31713483]
[1772419818882,3.66862263,84.116,84.059,10.7064]
[1772419819078,3.66862263,84.116,84.059,11.97268731]
[1772419819284,3.66862263,84.116,84.06,1.26628731]
[1772419820574,3.66862263,84.159,84.081,1.2657587]
[1772419820776,3.66862263,84.159,84.101,1.2657587]
[1772419821179,3.66862263,84.159,84.104,1.23824056]
[1772419821579,3.66862263,84.159,84.11,7.3888029]
[1772419821780,3.66862263,84.157,84.11,7.3888029]
[1772419822485,3.66862263,84.157,84.105,10.7005]
[1772419823084,3.66862263,84.154,84.088,1.11411225]
[1772419824585,3.66862263,84.152,84.093,10.702]
[1772419825787,3.66862263,84.15,84.093,10.702]
[1772419826889,3.66862263,84.145,84.091,1.11361711]
[1772419827889,3.66862263,84.141,84.091,1.11361711]
[1772419828287,3.66862263,84.129,84.076,1.12369323]
[1772419829883,10.6978,84.127,84.076,1.12369323]
[1772419830081,3.66862263,84.126,84.076,1.12369323]
[1772419830482,3.66862263,84.126,84.077,10.704]
[1772419830890,3.66862263,84.123,84.076,1.12369323]
[1772419831190,3.66862263,84.123,84.063,10.7058]
[1772419831889,3.66862263,84.119,84.068,1.13022775]
[1772419832080,3.66862263,84.119,84.071,1.13023189]
[1772419832685,3.66862263,84.117,84.06,7.3888029]
[1772419832881,3.66862263,84.117,84.056,1.13023189]
[1772419833083,3.66862263,84.117,84.013,466.65841156]
[1772419833084,3.66862263,84.092,84.038,1.12978038]
[1772419833489,3.66862263,84.089,84.022,1.15795312]
[1772419833688,7.3888029,84.08,84.022,1.15795312]
[1772419833886,3.66862263,84.079,84.022,1.15795312]
[1772419834586,3.66862263,84.076,84.022,1.15795312]
[1772419835996,3.66862263,84.074,84.02,10.7112]
[1772419836293,3.66862263,84.074,84.011,1.147759]
[1772419836492,7.3888029,84.09,84.021,1.147759]
[1772419836796,3.66862263,84.089,84.03,11.857759]
[1772419837789,3.66862263,84.089,84.034,1.03207234]
[1772419839093,3.66862263,84.079,84.021,1.03123398]
[1772419839801,3.66862263,84.077,84.023,0.79392641]
[1772419840789,10.7046,84.074,84.023,0.79392641]
[1772419840990,3.66862263,84.069,84.008,0.79311983]
[1772419841195,3.66862263,84.069,84.021,0.79366885]
[1772419842897,3.66862263,84.069,84.023,10.711]
[1772419843799,3.66862263,84.069,84.021,0.79366885]
[1772419843994,3.66862263,84.09,84.031,0.79061098]
[1772419844200,7.3888029,84.14,84.061,3.74110975]
[1772419844392,7.3888029,84.14,84.07,7.3888029]
[1772419844893,10.701,84.102,84.041,3.74110975]
[1772419845094,7.3888029,84.12,84.051,3.74110975]
[1772419845597,10.6998,84.111,84.062,10.7059]
[1772419846100,3.66862263,84.119,84.051,3.74110975]
[1772419846288,3.66862263,84.109,84.051,3.74110975]
[1772419847800,10.7021,84.093,84.051,3.74110975]
[1772419849096,3.60981456,84.096,84.051,3.74110975]
[1772419849495,10.7019,84.095,84.051,3.74110975]
[1772419849798,14.31171456,84.095,84.051,3.74110975]
[1772419849996,3.60981456,84.095,84.052,3.67988129]
[1772419851596,3.60981456,84.111,84.054,3.67988129]
[1772419852506,3.60981456,84.109,84.054,3.67988129]
[1772419853400,3.60981456,84.109,84.057,3.67988129]
[1772419853600,3.60981456,84.124,84.061,3.67988129]
[1772419854103,3.60981456,84.124,84.062,3.67988129]
[1772419854806,3.60981456,84.124,84.04,7.38576246]
[1772419854807,3.60981456,84.138,84.081,3.67988129]
[1772419855702,3.60981456,84.138,84.082,3.67988129]
[1772419856904,3.60981456,84.138,84.088,10.7026]
[1772419857105,10.6965,84.137,84.088,10.7026]
[1772419857810,315.49756912,84.166,84.082,3.67988129]
[1772419857811,3.60981456,84.134,84.082,3.67988129]
[1772419858915,3.60981456,84.128,84.082,3.67988129]
[1772419860314,3.60981456,84.126,84.07,7.38576246]
[1772419860515,3.60981456,84.126,84.062,3.67988129]
[1772419861823,10.6992,84.116,84.066,14.38528129]
[1772419862014,10.6992,84.116,84.067,3.67988129]
[1772419862921,10.6992,84.116,84.069,10.7051]
[1772419864518,14.30781456,84.126,84.074,3.67988129]
[1772419864719,3.60981456,84.14,84.081,3.67988129]
[1772419865821,3.60981456,84.136,84.083,10.7033]
[1772419866017,3.60981456,84.136,84.08,7.38576246]
[1772419866018,3.60981456,84.136,84.084,3.67988129]
[1772419867024,10.697,84.133,84.085,10.703]
[1772419867712,3.60981456,84.136,84.086,3.67988129]
[1772419867916,3.60981456,84.15,84.091,3.67988129]
[1772419868112,3.60981456,84.15,84.101,3.67988129]
[1772419868814,3.60981456,84.168,84.111,3.67988129]
[1772419869014,3.60981456,84.165,84.111,3.67988129]
[1772419870330,3.60981456,84.182,84.121,3.67988129]
[1772419871325,3.60981456,84.182,84.131,10.6971]
[1772419871528,3.60981456,84.182,84.132,3.67988129]
[1772419872931,3.60981456,84.182,84.133,10.6969]
[1772419873431,204.2741524,84.184,84.132,3.67988129]
[1772419873432,3.77405309,84.18,84.132,3.67988129]
[1772419874826,14.46565309,84.176,84.132,3.67988129]
[1772419875224,3.77405309,84.175,84.132,3.67988129]
[1772419878630,3.752487,84.173,84.132,3.67988129]
[1772419881542,3.752487,84.173,84.133,3.90435696]
[1772419881836,204.2741524,84.184,84.133,3.90435696]
[1772419882933,204.2741524,84.184,84.137,3.90435696]
[1772419883729,3.752487,84.183,84.137,3.90435696]
[1772419885037,10.6916,84.176,84.137,3.90435696]
[1772419885433,3.752487,84.183,84.137,3.90435696]
[1772419886230,10.6908,84.182,84.137,3.90435696]
[1772419886433,14.443287,84.182,84.137,3.90435696]
[1772419888542,3.752487,84.198,84.141,3.90435696]
[1772419888732,3.752487,84.211,84.151,3.90435696]
[1772419889039,3.752487,84.211,84.161,3.90435696]
[1772419889641,3.752487,84.211,84.167,3.90435696]
[1772419890745,3.752487,84.224,84.177,3.90435696]
[1772419891948,7.38576246,84.23,84.177,3.90435696]
[1772419891949,3.752487,84.222,84.177,3.90435696]
[1772419892147,3.752487,84.222,84.151,3.90435696]
[1772419892645,3.752487,84.199,84.131,3.90435696]
[1772419892854,3.752487,84.239,84.161,3.90435696]
[1772419893151,3.752487,84.231,84.161,3.90435696]
[1772419893351,3.752487,84.229,84.161,3.90435696]
[1772419893643,14.439087,84.215,84.161,3.90435696]
[1772419893950,3.752487,84.214,84.161,3.90435696]
[1772419894845,10.6872,84.211,84.161,3.90435696]
[1772419895245,7.38576246,84.24,84.13,3.90435696]
[1772419895246,3.752487,84.189,84.13,3.90435696]
[1772419895446,3.752487,84.177,84.13,3.90435696]
[1772419896748,3.752487,84.169,84.116,3.90435696]
[1772419897851,10.6926,84.168,84.116,3.90435696]
[1772419898351,14.445087,84.168,84.116,3.90435696]
[1772419899049,3.752487,84.168,84.119,3.90435696]
[1772419900351,3.752487,84.166,84.119,3.90435696]
[1772419901552,2.06827691,84.196,84.105,3.90435696]
[1772419901553,3.752487,84.156,84.105,3.90435696]
[1772419902152,10.6943,84.155,84.105,3.90435696]
[1772419902545,7.38576246,84.17,84.105,3.90435696]
[1772419902849,3.752487,84.169,84.105,3.90435696]
[1772419903952,10.693,84.165,84.107,3.90435696]
[1772419904945,10.693,84.165,84.111,3.90435696]
[1772419905349,14.445487,84.165,84.111,3.90435696]
[1772419905545,14.445487,84.165,84.114,3.90435696]
[1772419905849,10.6915,84.177,84.114,3.90435696]
[1772419906545,14.443987,84.177,84.114,3.90435696]
[1772419906954,14.443987,84.177,84.116,3.90435696]
[1772419907152,3.90071076,84.176,84.116,3.90435696]
[1772419907450,3.90071076,84.172,84.116,3.90435696]
[1772419908958,14.59291076,84.171,84.116,3.90435696]
[1772419909158,3.90071076,84.17,84.116,3.90435696]
[1772419909359,3.90071076,84.169,84.116,3.90435696]
[1772419910455,3.90071076,84.167,84.118,10.6989]
[1772419911162,3.90071076,84.165,84.116,3.90435696]
[1772419911762,3.90071076,84.153,84.101,3.65013997]
[1772419912262,3.90071076,84.153,84.103,10.7008]
[1772419912457,3.90071076,84.153,84.09,7.38576246]
[1772419912458,3.90071076,84.153,84.104,3.65013997]
[1772419913053,10.6935,84.161,84.11,3.65013997]
[1772419913253,3.90071076,84.167,84.111,3.65013997]
[1772419914863,3.90071076,84.167,84.124,3.65013997]
[1772419917562,21.96827581,84.18,84.126,3.65013997]
[1772419917766,3.90071076,84.179,84.126,3.65013997]
[1772419918259,3.90071076,84.179,84.132,3.65013997]
[1772419918663,3.90071076,84.193,84.142,3.65013997]
[1772419919767,3.90071076,84.193,84.146,10.6953]
[1772419920566,3.09653784,84.19,84.15,3.09653784]
[1772419921664,3.90071076,84.193,84.151,3.65013997]
[1772419922466,3.09653784,84.19,84.151,3.65013997]
[1772419923865,3.90071076,84.193,84.152,10.6945]
[1772419924466,3.90071076,84.206,84.16,3.09653784]
[1772419925369,3.90071076,84.206,84.17,3.09653784]
[1772419926570,3.90071076,84.206,84.161,3.65013997]
[1772419927863,3.90071076,84.199,84.16,3.09653784]
[1772419929766,3.90071076,84.199,84.117,262.47003222]
[1772419929767,3.09653784,84.17,84.109,3.65013997]
[1772419929964,3.09653784,84.16,84.111,10.90696238]
[1772419930165,3.09653784,84.14,84.1,3.09653784]
[1772419930367,3.09653784,84.15,84.101,10.90696361]
[1772419931364,3.09653784,84.14,84.101,10.90696361]
[1772419932463,10.695,84.149,84.101,10.90696361]
[1772419934465,7.38192126,84.14,84.087,10.72160222]
[1772419935268,7.38192126,84.12,84.074,10.71865354]
[1772419935467,7.38192126,84.11,84.06,10.71865354]
[1772419935772,7.38192126,84.12,84.06,10.71865354]
[1772419936266,18.08192126,84.11,84.06,10.71865354]
[1772419936462,7.38192126,84.11,84.06,10.71865354]
[1772419936664,8.89284351,84.157,84.06,10.71865354]
[1772419936665,7.38192126,84.12,84.06,10.71865354]
[1772419937468,7.38192126,84.13,84.061,10.72244068]
[1772419937670,7.38192126,84.14,84.061,10.72244068]
[1772419937967,10.6988,84.119,84.061,10.72244068]
[1772419938366,7.38192126,84.12,84.061,10.72244068]
[1772419938568,7.38192126,84.16,84.061,10.72244068]
[1772419938569,7.38192126,84.11,84.061,10.72244068]
[1772419938871,7.38192126,84.08,84.021,10.72244474]
[1772419939574,10.7036,84.082,84.021,10.72244474]
[1772419939773,7.38192126,84.08,84.021,10.72244474]
[1772419940075,10.7059,84.063,83.996,10.75084542]
[1772419940375,7.38192126,84.06,83.996,10.75084542]
[1772419941277,7.38192126,84.04,83.979,10.78354334]
[1772419941476,7.38192126,84.03,83.979,10.78354334]
[1772419941870,7.38192126,84.04,83.979,10.78354334]
[1772419942170,7.38192126,84.05,83.981,10.78354334]
[1772419942370,7.38192126,84.08,83.981,10.78354334]
[1772419942371,7.38192126,84.04,83.981,10.78354334]
[1772419942874,7.38192126,84.05,83.981,10.78354334]
[1772419943076,10.7079,84.048,83.983,10.77821665]
[1772419944472,18.08832126,84.06,83.991,10.7782196]
[1772419945569,10.7076,84.05,83.991,10.7782196]
[1772419945767,7.38192126,84.06,83.991,10.7782196]
[1772419946778,10.7068,84.056,83.994,10.81266925]
[1772419947778,10.7082,84.045,83.994,10.81266925]
[1772419947981,7.38192126,84.06,83.994,10.81266925]
[1772419948875,10.7068,84.056,83.994,10.81266925]
[1772419949575,10.7053,84.068,84.001,10.8287863]
[1772419950479,10.7053,84.068,84.004,10.82878835]
[1772419951685,10.7065,84.059,84.004,10.82878835]
[1772419952682,10.7048,84.072,84.008,10.82605291]
[1772419952881,7.38192126,84.08,84.008,10.82605291]
[1772419953081,7.38192126,84.06,84.008,10.82605291]
[1772419953881,10.7058,84.064,84.008,10.82605291]
[1772419954574,3.10606263,84.06,84.021,10.82055786]
[1772419954779,3.10606263,84.07,84.03,3.10606263]
[1772419955880,3.10606263,84.07,84.021,10.82055786]
[1772419956382,10.7053,84.068,84.021,10.82055786]
[1772419959089,10.7041,84.078,84.021,10.82055786]
[1772419959287,7.39530991,84.08,84.021,10.82055786]
[1772419960099,7.39530991,84.05,84.003,10.82226641]
[1772419960791,10.7081,84.046,84.003,10.82226641]
[1772419961190,7.39530991,84.08,84.003,10.82226641]
[1772419961191,7.39530991,84.06,84.003,10.82226641]
[1772419961396,10.7079,84.048,84.003,10.82226641]
[1772419962189,10.7089,84.04,84.003,10.82226641]
[1772419962696,10.7077,84.049,84.003,10.82226641]
[1772419964893,10.7087,84.041,84.003,10.82226641]
[1772419965092,7.39530991,84.06,84.003,10.82226641]
[1772419966393,10.7085,84.043,84.003,10.82226641]
[1772419967094,10.7071,84.054,84.003,10.82226641]
[1772419967494,7.39530991,84.06,84.003,10.82226641]
[1772419968095,7.39530991,84.08,83.962,289.45883124]
[1772419968096,7.39530991,84.08,84.011,10.63964813]
[1772419968694,7.39530991,84.07,84.011,10.63964813]
[1772419969901,10.7057,84.065,84.011,10.63964813]
[1772419970102,16.17821562,84.12,84.011,10.63964813]
[1772419970103,7.39530991,84.08,84.011,10.63964813]
[1772419970297,7.39530991,84.12,84.041,10.64839252]
[1772419970498,7.39530991,84.12,84.055,10.64839252]
[1772419970797,7.39530991,84.13,84.061,10.64839252]
[1772419971697,7.39530991,84.16,84.061,10.64839252]
[1772419971698,7.39530991,84.14,84.061,10.64839252]
[1772419972903,7.39530991,84.14,84.04,7.39530991]
[1772419972904,10.698,84.126,84.072,10.66840386]
[1772419973103,7.39530991,84.14,84.072,10.66840386]
[1772419974802,10.6966,84.137,84.075,10.64060545]
[1772419975904,10.6978,84.127,84.075,10.64060545]
[1772419976603,3.10164026,84.12,84.081,10.64079853]
[1772419978400,10.6988,84.119,84.081,10.64079853]
[1772419978606,3.10164026,84.11,84.066,10.63013696]
[1772419978795,3.10164026,84.11,84.071,10.63013696]
[1772419979000,10.6988,84.119,84.071,10.63013696]
[1772419980204,3.10164026,84.11,84.071,10.63013696]
[1772419982108,3.10164026,84.11,84.012,166.6374]
[1772419982109,3.10164026,84.09,84.049,10.62602058]
[1772419982504,3.10164026,84.09,84.051,10.62602058]
[1772419982807,3.10164026,84.12,84.071,9.07520045]
[1772419983503,3.10164026,84.12,84.08,3.10164026]
[1772419983705,3.10164026,84.12,84.081,9.06194884]
[1772419984506,3.10164026,84.13,84.081,9.06194884]
[1772419984808,3.10164026,84.12,84.081,9.06194884]
[1772419985004,10.6977,84.128,84.09,3.10164026]
[1772419985211,10.6977,84.128,84.02,62.0]
[1772419985212,3.10164026,84.14,84.101,9.09893675]
[1772419986701,10.6957,84.144,84.101,9.09893675]
[1772419987112,3.10164026,84.14,84.101,9.09893675]
[1772419987605,10.6962,84.139,84.101,9.09893675]
[1772419987806,3.10164026,84.11,84.052,9.10255527]
[1772419988014,3.10164026,84.06,84.021,9.10255527]
[1772419989410,3.10164026,84.07,84.021,9.10255527]
[1772419989609,3.10164026,84.06,84.021,9.10255527]
[1772419990510,7.39581872,84.07,84.021,9.10255527]
[1772419992012,10.7054,84.067,84.021,9.10255527]
[1772419992410,7.39581872,84.06,84.021,9.10255527]
[1772419992803,10.7065,84.059,83.997,9.10695382]
[1772419993207,7.39581872,84.05,83.997,9.10695382]
[1772419994011,10.7078,84.049,83.997,9.10695382]
[1772419996510,10.7063,84.06,83.998,9.1067022]
[1772419997916,18.10211872,84.06,84.002,9.10685823]
[1772419998314,18.10211872,84.06,84.003,10.7135]
[1772419998512,18.10211872,84.06,84.004,9.10686069]
[1772420000214,18.10211872,84.06,84.006,9.09941309]
[1772420001814,18.10211872,84.06,84.008,9.09678607]
[1772420003416,7.39581872,84.06,84.01,9.06658343]
[1772420003625,7.39581872,84.08,84.011,9.06658343]
[1772420004820,10.7042,84.077,84.016,9.06658602]
[1772420005931,7.39581872,84.1,84.031,9.07033405]
[1772420007121,7.39581872,84.12,84.031,9.07033405]
[1772420007326,7.39581872,84.08,84.031,9.07033405]
[1772420007924,10.704,84.078,84.031,9.07033405]
[1772420008325,7.39581872,84.1,84.031,9.07033405]
[1772420009025,10.7018,84.096,84.04,9.0815112]
[1772420010435,3.10468185,84.08,84.04,12.18619305]
[1772420010735,3.10468185,84.08,84.041,9.09062068]
[1772420011038,3.10468185,84.08,84.042,9.09062068]
[1772420014628,3.10468185,84.08,84.04,10.7088]
[1772420014629,3.10468185,84.06,84.025,9.09064138]
[1772420015827,3.10468185,84.08,84.04,3.10468185]
[1772420016024,3.10468185,84.08,84.041,9.04529952]
[1772420019226,3.10468185,84.07,84.041,9.04529952]
[1772420020634,3.10468185,84.08,84.042,9.0330256]
[1772420023832,3.10468185,84.07,84.031,9.04240543]
[1772420024036,3.10468185,84.07,84.033,9.04240543]
[1772420024736,3.10468185,84.07,84.035,10.7094]
[1772420024941,3.10468185,84.07,84.036,9.04240763]
[1772420026043,3.10468185,84.07,84.038,9.04252088]
[1772420026640,3.10468185,84.08,84.038,9.04252088]
[1772420028446,3.10468185,84.09,84.05,3.10468185]
[1772420028645,8.84295548,84.122,83.99,62.0]
[1772420028646,3.10468185,84.13,84.081,9.03915516]
[1772420028943,3.10468185,84.13,84.091,9.03915516]
[1772420029143,22.02446615,84.196,84.091,9.03915516]
[1772420029144,3.10468185,84.12,84.091,9.03915516]
[1772420029343,3.10468185,84.12,84.077,9.04212103]
[1772420029541,3.10468185,84.12,84.08,9.04212103]
[1772420029746,3.10468185,84.12,84.081,9.04212103]
[1772420031043,3.10468185,84.11,84.081,9.04212103]
[1772420031435,3.10468185,84.12,84.081,9.04212103]
[1772420031842,10.6988,84.119,84.081,9.04212103]
[1772420033146,3.10468185,84.11,84.065,8.97509133]
[1772420033747,3.10468185,84.11,84.064,10.7057]
[1772420033748,3.10468185,84.11,84.07,12.0821428]
[1772420034654,10.7001,84.109,84.07,12.0821428]
[1772420037453,3.10468185,84.11,84.07,12.0821428]
[1772420037654,3.10468185,84.11,84.071,8.96071598]
[1772420037843,8.88603269,84.142,84.036,8.96071598]
[1772420038043,3.10468185,84.08,84.041,10.51305915]
[1772420038246,3.10468185,84.1,84.051,10.51305915]
[1772420038448,3.10382722,84.1,84.051,10.51305915]
[1772420038753,3.10382722,84.09,84.051,10.51305915]
[1772420040250,3.10382722,84.1,84.061,10.48637856]
[1772420042358,3.10382722,84.09,84.045,10.49721615]
[1772420042553,3.10382722,84.08,84.045,10.49721615]
[1772420043149,10.7039,84.079,84.045,10.49721615]
[1772420044257,3.10382722,84.08,84.045,10.49721615]
[1772420044451,3.10382722,84.07,84.03,10.71]
[1772420044658,3.10382722,84.04,83.995,10.49177417]
[1772420044854,3.10382722,84.03,83.995,10.49177417]
[1772420045154,3.10382722,84.04,83.995,10.49177417]
[1772420045659,3.10382722,84.03,83.995,10.49177417]
[1772420046656,10.7103,84.029,83.97,7.40189927]
[1772420046961,7.40189927,84.04,83.979,10.45860394]
[1772420047163,10.7108,84.025,83.979,10.45860394]
[1772420047456,7.40189927,84.04,83.979,10.45860394]
[1772420047657,7.40189927,84.05,83.979,10.45860394]
[1772420048959,10.7093,84.037,83.979,10.45860394]
[1772420049159,7.40189927,84.04,83.979,10.48147994]
[1772420049753,10.7103,84.029,83.979,10.48147994]
[1772420050659,10.7088,84.041,83.984,10.48148202]
[1772420055363,10.71,84.031,83.984,10.48148202]
[1772420056869,10.7088,84.041,83.984,10.48148202]
[1772420058765,7.40189927,84.08,83.991,10.48210519]
[1772420058766,10.7074,84.052,83.991,10.48210519]
[1772420059767,10.7074,84.052,83.994,10.7146]
[1772420059971,10.7074,84.052,83.995,10.50025912]
[1772420060968,10.7074,84.052,83.998,10.50026086]
[1772420062669,7.40189927,84.05,83.998,10.50026086]
[1772420063769,10.7094,84.036,83.998,10.50026086]
[1772420064568,10.7083,84.045,83.998,10.50026086]
[1772420066470,10.7083,84.045,84.001,10.54610233]
[1772420067671,10.7072,84.053,84.011,10.54534358]
[1772420068970,3.10740863,84.05,84.011,10.54534358]
[1772420069361,10.7072,84.053,84.011,10.54534358]
[1772420070171,10.7059,84.064,84.021,10.54449869]
[1772420070368,3.10740863,84.07,84.03,3.10740863]
[1772420070567,3.10740863,84.07,84.031,10.54449869]
[1772420071262,3.10740863,84.07,84.02,3.10740863]
[1772420071470,3.10740863,84.05,84.01,3.10740863]
[1772420071670,3.10740863,84.05,84.005,10.55254933]
[1772420072271,10.7078,84.048,84.005,10.55254933]
[1772420072469,10.7078,84.048,84.0,3.10740863]
[1772420072676,3.10740863,84.04,83.991,10.55255068]
[1772420072866,3.10740863,84.04,84.0,3.10740863]
[1772420073071,3.10740863,84.04,84.001,10.55203932]
[1772420073874,13.81630863,84.04,84.001,10.55203932]
[1772420075378,10.7109,84.024,83.99,3.10740863]
[1772420075772,3.10740863,84.04,83.991,10.58155274]
[1772420076465,10.7091,84.038,83.991,10.58155274]
[1772420077970,10.7101,84.031,83.991,10.58155274]
[1772420078171,3.10740863,84.03,83.991,10.58155274]
[1772420079473,10.7104,84.028,83.991,10.58155274]
[1772420080376,3.10740863,84.03,83.991,10.58155274]
[1772420080577,3.10740863,84.05,84.001,10.53470028]
[1772420081378,10.7083,84.045,84.01,3.10740863]
[1772420081579,3.10740863,84.07,84.021,10.53442794]
[1772420082782,10.7061,84.061,84.021,10.53442794]
[1772420083178,3.10740863,84.05,84.01,3.10740863]
[1772420084472,3.10740863,84.05,84.011,10.55028234]
[1772420084672,10.7071,84.054,84.011,10.55028234]
[1772420092393,10.708,84.047,84.011,10.55028234]
[1772420094588,10.7069,84.055,84.011,10.55028234]
[1772420095994,10.7059,84.064,84.031,10.55011213]
[1772420097991,3.10740863,84.07,84.031,10.55011213]
[1772420098198,3.10740863,84.07,83.978,15.15125219]
[1772420098199,3.10740863,84.09,84.05,3.10740863]
[1772420098403,3.10740863,84.06,84.028,10.57973964]
[1772420098599,3.10641661,84.06,84.028,10.57973964]
[1772420099902,3.10641661,84.07,84.031,10.64035679]
[1772420101904,10.704,84.079,84.031,10.64035679]
[1772420102505,3.10641661,84.07,84.031,10.64035679]
[1772420103401,10.704,84.079,84.031,10.64035679]
[1772420104308,3.10641661,84.06,84.031,10.64035679]
[1772420104704,3.10641661,84.07,84.031,10.64035679]
[1772420105505,10.7046,84.073,84.031,10.64035679]
[1772420105808,10.7057,84.065,84.031,10.64035679]
[1772420107103,3.10641661,84.09,84.041,10.7809847]
[1772420107301,3.10641661,84.09,84.051,10.7809847]
[1772420108910,10.7035,84.082,84.051,10.7809847]
[1772420109107,10.7035,84.082,83.99,62.0]
[1772420109108,11.10372211,84.102,84.021,10.79066847]
[1772420109305,3.10641661,84.05,84.007,10.79066847]
[1772420110403,3.10641661,84.06,84.011,10.79066885]
[1772420111507,8.97419002,84.081,84.011,10.79066885]
[1772420111508,3.10641661,84.05,84.011,10.79066885]
[1772420114115,10.7066,84.058,84.011,10.79066885]
[1772420114816,10.7066,84.058,83.97,62.0]
[1772420114817,3.10641661,84.07,84.03,3.10641661]
[1772420115017,3.10641661,84.07,84.031,10.77097629]
[1772420121224,3.10641661,84.05,84.019,10.75873263]
[1772420122519,3.10641661,84.06,84.019,10.75873263]
[1772420122926,13.81271661,84.06,84.019,10.75873263]
[1772420126524,3.10641661,84.05,84.019,10.75873263]
[1772420128828,13.81271661,84.06,84.019,10.75873263]
[1772420132121,10.7053,84.068,84.022,10.76026341]
[1772420132823,10.7053,84.068,84.024,10.76026374]
[1772420133027,10.7043,84.076,84.031,10.76026374]
[1772420133227,3.10641661,84.07,84.031,10.76026374]
[1772420134930,10.7052,84.069,84.031,10.76026374]
[1772420141235,3.10641661,84.07,84.031,10.76026374]
[1772420141432,3.10641661,84.07,84.032,10.7098]
[1772420141634,3.10641661,84.07,84.033,10.80166398]
[1772420142933,10.7051,84.069,84.033,10.80166398]
[1772420144135,3.10641661,84.08,84.033,10.80166398]
[1772420144640,3.10641661,84.09,84.033,10.80166398]
[1772420145931,10.703,84.086,84.042,10.79752188]
[1772420149448,10.703,84.086,84.044,10.79947003]
[1772420151946,10.703,84.086,84.043,10.7084]
[1772420151947,8.97419002,84.105,84.06,10.7062]
[1772420152151,3.10641661,84.1,84.061,10.8057833]
[1772420153856,10.7013,84.099,84.061,10.8057833]
[1772420155157,3.10641661,84.1,84.061,10.8057833]
[1772420158365,8.94295002,84.138,84.063,10.84764511]
[1772420158559,3.10641661,84.11,84.063,10.84764511]
[1772420158755,3.10641661,84.1,84.063,10.84764511]
[1772420159662,3.10641661,84.11,84.063,10.84764511]
[1772420159858,3.10641661,84.11,84.071,10.85572405]
[1772420160465,3.10189208,84.13,84.081,10.85572419]
[1772420160966,3.10189208,84.14,84.091,10.85572419]
[1772420161360,8.89730304,84.16,84.1,3.10189208]
[1772420161562,3.10189208,84.16,84.121,10.94674063]
[1772420162864,3.10189208,84.17,84.121,10.94674063]
[1772420163064,3.10189208,84.16,84.121,10.94674063]
[1772420163361,3.10189208,84.14,84.101,10.95346914]
[1772420167764,3.10189208,84.17,84.121,10.95647348]
[1772420169366,3.10189208,84.16,84.121,10.95647348]
[1772420171574,10.6925,84.169,84.121,10.95647348]
[1772420172073,3.10189208,84.18,84.131,10.96800344]
[1772420172267,3.10189208,84.18,84.141,10.96800344]
[1772420172773,2.06810483,84.21,84.077,262.02397137]
[1772420172774,21.3649,84.248,84.151,10.96800344]
[1772420172973,11.10372211,84.254,84.151,10.96800344]
[1772420172974,3.10189208,84.19,84.151,10.96800344]
[1772420173366,3.10189208,84.17,84.133,10.98000244]
[1772420174070,3.10189208,84.17,84.088,21.4052]
[1772420174071,3.10189208,84.19,84.141,10.98000244]